[Event "94th Paris-ch  2019"]
[Site "Paris"]
[Date "2019.07.07"]
[Round "1.1"]
[White "Dutreuil, Raphael"]
[Black "Moussard, Jules"]
[Result "0-1"]
[ECO "E60"]
[WhiteElo "2302"]
[BlackElo "2576"]
[Annotator "ChessBase"]
[PlyCount "104"]
[EventDate "2019.07.07"]
[EventType "swiss"]
[EventCountry "FRA"]
[SourceTitle "playchess.com"]
[Source "ChessBase"]
[SourceQuality "1"]
[TimeControl "5400+30"]

1. d4 {[%emt 0:00:00]} d6 {[%emt 0:00:00]} 2. Nf3 {[%emt 0:02:07]} g6 {[%emt 0:00:00]} 3. g3 {[%emt 0:00:18]} Bg7 {[%emt 0:01:04]} 4. Bg2 {[%emt 0:00:09]} Nf6 {[%emt 0:00:04]} 5. O-O {[%emt 0:00:18]} O-O {[%emt 0:00:04]} 6. c4 {[%emt 0:00:12]} Ne4 {[%emt 0:00:45]} 7. Qc2 {[%emt 0:09:07]} f5 {[%emt 0:00:31]} 8. Nbd2 {[%emt 0:02:30]} Nxd2 {[%emt 0:00:18]} 9. Bxd2 {[%emt 0:00:06]} e5 {[%emt 0:00:22]} 10. dxe5 {[%emt 0:08:35]} dxe5 {[%emt 0:00:08]} 11. Rad1 {[%emt 0:07:44]} Qe7 {[%emt 0:06:31]} 12. e4 {[%emt 0:08:27]} Nc6 {[%emt 0:07:15]} 13. Rfe1 {[%emt 0:06:48]} f4 {[%emt 0:02:11]} 14. gxf4 {[%emt 0:15:16]} Bg4 {[%emt 0:03:56]} 15. f5 {[%emt 0:05:18]} gxf5 {[%emt 0:13:08]} 16. exf5 {[%emt 0:09:18]} Qf6 {[%emt 0:03:22]} 17. Bc3 {[%emt 0:07:00]} Bxf5 {[%emt 0:00:52]} 18. Qd2 {[%emt 0:07:20]} Rae8 {[%emt 0:14:35]} 19. Qg5 {[%emt 0:02:42]} Bg6 {[%emt 0:01:35]} 20. Rd7 {[%emt 0:01:56]} Rf7 {[%emt 0:04:01]} 21. Rxf7 {[%emt 0:01:08]} Bxf7 {[%emt 0:01:11]} 22. Qxf6 {[%emt 0:00:36]} Bxf6 {[%emt 0:00:01]} 23. Nd2 {[%emt 0:00:27]} Rd8 {[%emt 0:00:10]} 24. Bxc6 bxc6 {[%emt 0:00:01]} 25. Ne4 {[%emt 0:03:09]} Bg7 {[%emt 0:02:09]} 26. b3 {[%emt 0:00:15]} Bh5 {[%emt 0:02:24]} 27. Re3 {[%emt 0:00:42]} Rd1+ {[%emt 0:00:29]} 28. Kg2 {[%emt 0:00:01]} Bg6 {[%emt 0:01:16]} 29. Ng3 {[%emt 0:00:38]} Rd3 {[%emt 0:03:49]} 30. Rxd3 {[%emt 0:01:35]} Bxd3 {[%emt 0:00:05]} 31. Ba5 {[%emt 0:00:20]} Bf8 {[%emt 0:02:49]} 32. Bxc7 {[%emt 0:00:30]} Bb1 {[%emt 0:00:17]} 33. Ne2 {[%emt 0:00:36]} Bxa2 {[%emt 0:03:24]} 34. Nc1 {[%emt 0:00:02]} Bb1 {[%emt 0:00:06]} 35. Bxe5 {[%emt 0:00:13]} Bc2 {[%emt 0:00:45]} 36. Bb2 {[%emt 0:01:24]} Kf7 {[%emt 0:00:35]} 37. Kf3 {[%emt 0:00:19]} Bd6 {[%emt 0:00:53]} 38. h3 {[%emt 0:00:33]} Kg6 {[%emt 0:00:19]} 39. Ke3 {[%emt 0:00:54]} Kg5 {[%emt 0:00:44]} 40. Kd2 {[%emt 0:00:48]} Bf5 {[%emt 0:00:03]} 41. Ne2 {[%emt 0:00:24]} Bxh3 {[%emt 0:00:33]} 42. Nd4 {[%emt 0:00:16]} Bd7 {[%emt 0:03:09]} 43. Ke3 {[%emt 0:00:28]} h5 {[%emt 0:01:07]} 44. Ke4 {[%emt 0:00:32]} Be8 {[%emt 0:02:17]} 45. Ne6+ {[%emt 0:00:46]} Kg4 {[%emt 0:01:04]} 46. f3+ {[%emt 0:00:16]} Kg3 {[%emt 0:00:21]} 47. f4 {[%emt 0:00:41]} h4 {[%emt 0:00:14]} 48. Nd4 {[%emt 0:00:43]} Bg6+ {[%emt 0:02:37]} 49. f5 {[%emt 0:00:05]} Bh5 {[%emt 0:00:04]} 50. f6 {[%emt 0:00:44]} Bg6+ {[%emt 0:00:04]} 51. Ke3 {[%emt 0:00:05]} h3 {[%emt 0:00:17]} 52. f7 {[%emt 0:00:53]} h2 {[%emt 0:00:34]} 0-1

[Event "94th Paris-ch  2019"]
[Site "Paris"]
[Date "2019.07.07"]
[Round "1.2"]
[White "Guliyev, Namig"]
[Black "Fitzsimons, David"]
[Result "1/2-1/2"]
[ECO "B52"]
[WhiteElo "2551"]
[BlackElo "2301"]
[Annotator "ChessBase"]
[PlyCount "81"]
[EventDate "2019.07.07"]
[EventType "swiss"]
[EventCountry "FRA"]
[SourceTitle "playchess.com"]
[Source "ChessBase"]
[SourceQuality "1"]
[TimeControl "5400+30"]

1. e4 {[%emt 0:00:00]} c5 {[%emt 0:00:00]} 2. Nf3 {[%emt 0:00:00]} d6 {[%emt 0:00:00]} 3. Bb5+ {[%emt 0:00:00]} Bd7 {[%emt 0:00:00]} 4. c4 {[%emt 0:00:13]} Nf6 {[%emt 0:00:12]} 5. Nc3 {[%emt 0:01:30]} Nc6 {[%emt 0:00:23]} 6. d4 {[%emt 0:00:41]} cxd4 {[%emt 0:00:08]} 7. Nxd4 {[%emt 0:00:04]} g6 {[%emt 0:00:50]} 8. f3 {[%emt 0:00:28]} Bg7 {[%emt 0:03:21]} 9. Be3 {[%emt 0:01:16]} O-O {[%emt 0:00:22]} 10. O-O {[%emt 0:03:40]} Nxd4 {[%emt 0:14:16]} 11. Bxd4 {[%emt 0:00:07]} Bxb5 {[%emt 0:00:18]} 12. cxb5 {[%emt 0:00:18]} e6 {[%emt 0:09:29]} 13. Qd2 {[%emt 0:04:02]} d5 {[%emt 0:02:10]} 14. e5 {[%emt 0:02:07]} Nd7 {[%emt 0:00:09]} 15. Rfe1 {[%emt 0:00:36]} a6 {[%emt 0:02:30]} 16. a4 {[%emt 0:01:23]} Qa5 {[%emt 0:04:02]} 17. Qe3 {[%emt 0:05:46]} Rfc8 {[%emt 0:03:01]} 18. f4 {[%emt 0:03:34]} Bf8 {[%emt 0:03:57]} 19. f5 {[%emt 0:20:05]} Rc4 {[%emt 0:10:09]} 20. fxe6 {[%emt 0:03:31]} fxe6 {[%emt 0:00:15]} 21. Kh1 {[%emt 0:00:05]} Bg7 {[%emt 0:12:08]} 22. b3 {[%emt 0:10:42]} Bh6 {[%emt 0:09:47]} 23. Qxh6 {[%emt 0:15:09]} Rxd4 {[%emt 0:00:07]} 24. Qh3 {[%emt 0:00:21]} Re8 {[%emt 0:01:57]} 25. Re3 {[%emt 0:04:34]} Rd2 {[%emt 0:08:12]} 26. Rf1 {[%emt 0:02:34]} Qb4 {[%emt 0:08:04]} 27. Rf7 {[%emt 0:02:28]} h5 {[%emt 0:00:42]} 28. Rxd7 {[%emt 0:07:50]} Qxc3 {[%emt 0:00:11]} 29. Re1 {[%emt 0:00:29]} Qxe5 {[%emt 0:00:52]} 30. Rg1 {[%emt 0:00:41]} axb5 {[%emt 0:00:34]} 31. Rxb7 {[%emt 0:00:31]} bxa4 {[%emt 0:01:03]} 32. bxa4 {[%emt 0:00:04]} Rb2 {[%emt 0:02:23]} 33. Qd3 {[%emt 0:01:22]} Rxb7 {[%emt 0:01:12]} 34. Qxg6+ {[%emt 0:00:05]} Rg7 {[%emt 0:01:28]} 35. Qxe8+ {[%emt 0:00:05]} Kh7 {[%emt 0:00:03]} 36. a5 {[%emt 0:00:06]} d4 {[%emt 0:00:14]} 37. a6 {[%emt 0:02:34]} d3 {[%emt 0:00:04]} 38. Qa4 {[%emt 0:00:01]} Ra7 {[%emt 0:01:56]} 39. h3 {[%emt 0:02:27]} Qd5 {[%emt 0:01:09]} 40. Rd1 {[%emt 0:01:42]} e5 {[%emt 0:00:31]} 41. Re1 {[%emt 0:02:50]} 1/2-1/2

[Event "94th Paris-ch  2019"]
[Site "Paris"]
[Date "2019.07.07"]
[Round "1.3"]
[White "Tomasi, Albert"]
[Black "Shchekachev, Andrei"]
[Result "1/2-1/2"]
[ECO "A34"]
[WhiteElo "2300"]
[BlackElo "2531"]
[Annotator "ChessBase"]
[PlyCount "79"]
[EventDate "2019.07.07"]
[EventType "swiss"]
[EventCountry "FRA"]
[SourceTitle "playchess.com"]
[Source "ChessBase"]
[SourceQuality "1"]
[TimeControl "5400+30"]

1. e4 {[%emt 0:00:33]} c5 {[%emt 0:00:00]} 2. Nf3 {[%emt 0:00:13]} e6 {[%emt 0:00:00]} 3. d4 {[%emt 0:02:36]} cxd4 {[%emt 0:00:26]} 4. Nxd4 {[%emt 0:00:07]} a6 {[%emt 0:02:30]} 5. c4 {[%emt 0:04:34]} b6 {[%emt 0:01:39]} 6. Nc3 {[%emt 0:02:38]} Bb7 {[%emt 0:00:27]} 7. Be2 {[%emt 0:00:15]} Nf6 {[%emt 0:04:42]} 8. e5 {[%emt 0:12:33]} Ne4 {[%emt 0:00:19]} 9. Nxe4 {[%emt 0:00:24]} Bxe4 {[%emt 0:00:09]} 10. O-O {[%emt 0:03:42]} Nc6 {[%emt 0:03:56]} 11. Nxc6 {[%emt 0:00:17]} Bxc6 {[%emt 0:00:23]} 12. Bd2 {[%emt 0:22:40]} Qc7 {[%emt 0:09:40]} 13. Bc3 {[%emt 0:00:58]} Qb7 {[%emt 0:05:50]} 14. f3 {[%emt 0:10:48]} a5 {[%emt 0:09:15]} 15. a3 {[%emt 0:09:00]} Bc5+ {[%emt 0:05:46]} 16. Kh1 {[%emt 0:00:15]} a4 {[%emt 0:00:11]} 17. Qe1 {[%emt 0:06:17]} h5 {[%emt 0:10:18]} 18. Qg3 {[%emt 0:03:37]} g6 {[%emt 0:02:32]} 19. Qg5 {[%emt 0:05:08]} Be7 {[%emt 0:08:00]} 20. Qe3 {[%emt 0:04:06]} h4 {[%emt 0:01:05]} 21. Bb4 {[%emt 0:00:23]} Rh5 {[%emt 0:02:07]} 22. h3 {[%emt 0:02:42]} Bc5 {[%emt 0:08:23]} 23. Bxc5 {[%emt 0:01:31]} bxc5 {[%emt 0:00:02]} 24. Rab1 {[%emt 0:00:18]} Qc7 {[%emt 0:11:50]} 25. f4 {[%emt 0:00:21]} Rh8 {[%emt 0:00:39]} 26. Kg1 {[%emt 0:02:27]} Qa7 {[%emt 0:01:38]} 27. Bd1 {[%emt 0:03:16]} Rb8 {[%emt 0:04:39]} 28. Rf2 {[%emt 0:00:17]} Kf8 {[%emt 0:01:39]} 29. Rd2 {[%emt 0:00:29]} Qa5 {[%emt 0:00:59]} 30. Rc1 {[%emt 0:01:28]} Kg7 {[%emt 0:00:25]} 31. Rc3 {[%emt 0:00:16]} Rb7 {[%emt 0:00:38]} 32. Bf3 {[%emt 0:00:42]} Bxf3 {[%emt 0:00:27]} 33. Qxf3 {[%emt 0:00:03]} Rhb8 {[%emt 0:00:09]} 34. Qf2 {[%emt 0:00:15]} Qd8 {[%emt 0:00:36]} 35. Rcd3 {[%emt 0:00:34]} Rc7 {[%emt 0:03:23]} 36. Kh2 {[%emt 0:00:54]} Rbb7 {[%emt 0:00:15]} 37. Qf3 {[%emt 0:01:07]} Qh8 {[%emt 0:01:51]} 38. Qd1 {[%emt 0:00:42]} Qh6 {[%emt 0:00:23]} 39. Rf2 {[%emt 0:00:16]} Ra7 {[%emt 0:00:30]} 40. Qf3 {[%emt 0:00:39]} 1/2-1/2

[Event "94th Paris-ch  2019"]
[Site "Paris"]
[Date "2019.07.07"]
[Round "1.4"]
[White "Flom, Gabriel"]
[Black "Cotonnec, Melkior"]
[Result "1-0"]
[ECO "D90"]
[WhiteElo "2494"]
[BlackElo "2293"]
[Annotator "ChessBase"]
[PlyCount "76"]
[EventDate "2019.07.07"]
[EventType "swiss"]
[EventCountry "FRA"]
[SourceTitle "playchess.com"]
[Source "ChessBase"]
[SourceQuality "1"]
[TimeControl "5400+30"]

1. d4 {[%emt 0:00:00]} Nf6 {[%emt 0:00:00]} 2. c4 {[%emt 0:00:00]} g6 {[%emt 0:00:00]} 3. Nc3 {[%emt 0:00:00]} d5 {[%emt 0:00:00]} 4. Nf3 {[%emt 0:00:04]} Bg7 {[%emt 0:00:00]} 5. h4 {[%emt 0:00:20]} c6 {[%emt 0:06:49]} 6. Bg5 {[%emt 0:00:07]} dxc4 {[%emt 0:10:14]} 7. e4 {[%emt 0:00:03]} b5 {[%emt 0:00:06]} 8. e5 {[%emt 0:00:12]} Nd5 {[%emt 0:00:13]} 9. h5 {[%emt 0:00:08]} gxh5 {[%emt 0:25:12]} 10. a4 {[%emt 0:04:05]} Bg4 {[%emt 0:06:43]} 11. axb5 {[%emt 0:00:05]} Nxc3 {[%emt 0:01:01]} 12. bxc3 {[%emt 0:00:03]} cxb5 {[%emt 0:00:06]} 13. Qb1 {[%emt 0:05:43]} Qd7 {[%emt 0:08:11]} 14. Qe4 {[%emt 0:30:45]} Nc6 {[%emt 0:02:02]} 15. Ra6 {[%emt 0:00:03]} Rc8 {[%emt 0:11:54]} 16. d5 {[%emt 0:00:09]} Nb8 {[%emt 0:00:22]} 17. Ra2 {[%emt 0:25:07]} Rc5 {[%emt 0:02:35]} 18. Rd2 {[%emt 0:03:03]} Qf5 {[%emt 0:01:54]} 19. Qxf5 {[%emt 0:00:40]} Bxf5 {[%emt 0:00:01]} 20. Be3 {[%emt 0:00:01]} Rc7 {[%emt 0:01:04]} 21. Nd4 {[%emt 0:01:53]} Be4 {[%emt 0:08:18]} 22. Rh4 {[%emt 0:03:37]} Bd3 {[%emt 0:02:52]} 23. Bxd3 {[%emt 0:07:45]} cxd3 {[%emt 0:00:05]} 24. f4 {[%emt 0:04:37]} Rxc3 {[%emt 0:03:50]} 25. Nxb5 {[%emt 0:01:27]} Rc1+ {[%emt 0:00:18]} 26. Kf2 {[%emt 0:01:31]} Rc2 {[%emt 0:03:15]} 27. Nd4 {[%emt 0:00:20]} Rxd2+ {[%emt 0:01:38]} 28. Bxd2 {[%emt 0:00:06]} Nd7 {[%emt 0:00:12]} 29. Rxh5 {[%emt 0:00:51]} Nb6 {[%emt 0:00:15]} 30. Nf5 {[%emt 0:00:25]} Bf8 {[%emt 0:00:22]} 31. Ne3 {[%emt 0:00:41]} e6 {[%emt 0:02:20]} 32. d6 {[%emt 0:00:17]} f6 {[%emt 0:00:23]} 33. Kf3 {[%emt 0:03:02]} fxe5 {[%emt 0:00:18]} 34. fxe5 {[%emt 0:00:02]} Bg7 {[%emt 0:01:17]} 35. Ke4 {[%emt 0:00:28]} Kf7 {[%emt 0:01:03]} 36. Kxd3 {[%emt 0:01:06]} Kg6 {[%emt 0:00:35]} 37. g4 {[%emt 0:00:04]} Nd7 {[%emt 0:01:40]} 38. Kd4 {[%emt 0:03:07]} Rb8 {[%emt 0:00:48]} 1-0

[Event "94th Paris-ch  2019"]
[Site "Paris"]
[Date "2019.07.07"]
[Round "1.5"]
[White "O'Sullivan, Thomas"]
[Black "Sochacki, Christophe"]
[Result "1/2-1/2"]
[ECO "E35"]
[WhiteElo "2291"]
[BlackElo "2481"]
[Annotator "ChessBase"]
[PlyCount "172"]
[EventDate "2019.07.07"]
[EventType "swiss"]
[EventCountry "FRA"]
[SourceTitle "playchess.com"]
[Source "ChessBase"]
[SourceQuality "1"]
[TimeControl "5400+30"]

1. d4 {[%emt 0:00:00]} Nf6 {[%emt 0:00:00]} 2. c4 {[%emt 0:00:00]} e6 {[%emt 0:00:00]} 3. Nc3 {[%emt 0:00:00]} Bb4 {[%emt 0:00:06]} 4. Qc2 {[%emt 0:00:00]} d5 {[%emt 0:05:10]} 5. cxd5 {[%emt 0:00:26]} exd5 {[%emt 0:01:49]} 6. Bg5 {[%emt 0:00:09]} h6 {[%emt 0:06:54]} 7. Bh4 {[%emt 0:00:05]} c6 {[%emt 0:09:04]} 8. e3 {[%emt 0:00:17]} g5 {[%emt 0:04:20]} 9. Bg3 {[%emt 0:00:06]} Ne4 {[%emt 0:00:13]} 10. Bd3 {[%emt 0:02:07]} O-O {[%emt 0:37:01]} 11. Bxe4 {[%emt 0:11:09]} dxe4 {[%emt 0:01:50]} 12. Qxe4 {[%emt 0:01:45]} Re8 {[%emt 0:12:39]} 13. Qd3 {[%emt 0:07:27]} Qd5 {[%emt 0:00:03]} 14. Nge2 {[%emt 0:38:40]} Bf5 {[%emt 0:01:04]} 15. Qd2 {[%emt 0:00:29]} Qxg2 {[%emt 0:00:35]} 16. O-O-O {[%emt 0:02:46]} Na6 {[%emt 0:03:08]} 17. h4 {[%emt 0:03:30]} Ba5 {[%emt 0:04:15]} 18. Rh2 {[%emt 0:14:46]} Qf3 {[%emt 0:00:17]} 19. Ng1 {[%emt 0:01:29]} Qg4 {[%emt 0:01:46]} 20. Bd6 {[%emt 0:00:49]} Bg6 {[%emt 0:00:57]} 21. hxg5 {[%emt 0:01:12]} Rad8 {[%emt 0:00:51]} 22. f3 {[%emt 0:02:57]} Qe6 {[%emt 0:01:25]} 23. Be5 {[%emt 0:02:31]} Nb4 {[%emt 0:00:21]} 24. e4 {[%emt 0:04:54]} Nxa2+ {[%emt 0:00:10]} 25. Kc2 {[%emt 0:00:24]} Bxc3 {[%emt 0:02:38]} 26. bxc3 {[%emt 0:01:34]} Nb4+ {[%emt 0:04:12]} 27. cxb4 {[%emt 0:01:58]} Qa2+ {[%emt 0:00:13]} 28. Kc1 {[%emt 0:00:02]} Qa1+ {[%emt 0:00:06]} 29. Kc2 {[%emt 0:00:01]} Qa4+ {[%emt 0:00:19]} 30. Kc1 {[%emt 0:01:05]} Rxe5 {[%emt 0:01:14]} 31. Qa2 {[%emt 0:01:18]} Qxa2 {[%emt 0:00:29]} 32. Rxa2 {[%emt 0:00:00]} Rxg5 {[%emt 0:00:11]} 33. Rxa7 {[%emt 0:00:06]} Rb5 {[%emt 0:00:04]} 34. Ra4 {[%emt 0:01:04]} f5 {[%emt 0:00:17]} 35. e5 {[%emt 0:01:36]} Bf7 {[%emt 0:00:19]} 36. Kc2 {[%emt 0:00:13]} b6 {[%emt 0:01:46]} 37. Ne2 {[%emt 0:00:36]} c5 {[%emt 0:00:06]} 38. d5 {[%emt 0:00:53]} cxb4 {[%emt 0:00:53]} 39. e6 {[%emt 0:00:28]} Be8 {[%emt 0:00:27]} 40. Ra7 {[%emt 0:00:19]} Rbxd5 {[%emt 0:01:49]} 41. Rg1+ {[%emt 0:00:00]} Kh8 {[%emt 0:00:08]} 42. Nf4 {[%emt 0:00:20]} Rd4 {[%emt 0:01:09]} 43. Ng6+ {[%emt 0:00:24]} Bxg6 44. Rxg6 {[%emt 0:00:02]} Rd2+ {[%emt 0:00:55]} 45. Kb3 {[%emt 0:00:18]} R2d3+ {[%emt 0:00:41]} 46. Kxb4 {[%emt 0:00:41]} R8d4+ {[%emt 0:00:31]} 47. Kb5 {[%emt 0:00:12]} Rb3+ {[%emt 0:00:07]} 48. Kc6 {[%emt 0:00:34]} Rc3+ {[%emt 0:00:01]} 49. Kb5 {[%emt 0:00:57]} Rb3+ {[%emt 0:00:01]} 50. Kc6 {[%emt 0:00:18]} Rc3+ {[%emt 0:00:01]} 51. Kxb6 {[%emt 0:01:46]} Rb4+ {[%emt 0:00:09]} 52. Ka5 {[%emt 0:00:01]} Rb1 {[%emt 0:01:27]} 53. Rxh6+ {[%emt 0:00:11]} Kg8 {[%emt 0:00:01]} 54. Rg6+ {[%emt 0:00:06]} Kh8 {[%emt 0:00:04]} 55. Rh6+ {[%emt 0:01:37]} Kg8 {[%emt 0:00:01]} 56. Rg6+ {[%emt 0:00:10]} Kh8 {[%emt 0:00:00]} 57. Ka4 {[%emt 0:01:06]} Rc2 {[%emt 0:00:43]} 58. Rh6+ {[%emt 0:00:03]} Kg8 {[%emt 0:00:01]} 59. Rg6+ {[%emt 0:00:02]} Kh8 {[%emt 0:00:02]} 60. Rh6+ {[%emt 0:00:06]} Kg8 {[%emt 0:00:02]} 61. Rg6+ {[%emt 0:00:21]} Kh8 {[%emt 0:00:21]} 62. Ka3 {[%emt 0:01:26]} Ra1+ {[%emt 0:00:53]} 63. Kb3 {[%emt 0:00:03]} Rxa7 {[%emt 0:00:02]} 64. Kxc2 {[%emt 0:00:03]} Re7 {[%emt 0:00:20]} 65. Kd3 {[%emt 0:00:35]} Kh7 {[%emt 0:00:01]} 66. Rf6 {[%emt 0:00:31]} Kg7 {[%emt 0:00:02]} 67. Rxf5 {[%emt 0:00:22]} Rxe6 {[%emt 0:00:02]} 68. Kd4 {[%emt 0:00:29]} Re8 {[%emt 0:00:03]} 69. Re5 {[%emt 0:00:13]} Ra8 {[%emt 0:00:09]} 70. Ke4 {[%emt 0:00:07]} Kf6 {[%emt 0:00:09]} 71. Rb5 {[%emt 0:00:30]} Ra4+ {[%emt 0:00:06]} 72. Ke3 {[%emt 0:00:04]} Ra6 {[%emt 0:00:08]} 73. Kf4 {[%emt 0:00:08]} Ra4+ {[%emt 0:00:09]} 74. Kg3 {[%emt 0:00:02]} Rc4 {[%emt 0:00:51]} 75. Ra5 {[%emt 0:00:10]} Rb4 {[%emt 0:00:06]} 76. Ra6+ {[%emt 0:00:05]} Kf5 {[%emt 0:00:07]} 77. Ra5+ {[%emt 0:00:04]} Kf6 {[%emt 0:00:04]} 78. f4 {[%emt 0:00:02]} Rb1 {[%emt 0:00:17]} 79. Re5 {[%emt 0:00:15]} Rg1+ {[%emt 0:00:45]} 80. Kf3 {[%emt 0:00:05]} Rf1+ {[%emt 0:00:05]} 81. Kg3 {[%emt 0:00:08]} Rg1+ {[%emt 0:00:08]} 82. Kf2 {[%emt 0:00:05]} Ra1 {[%emt 0:00:07]} 83. Rd5 {[%emt 0:00:28]} Ra3 {[%emt 0:00:11]} 84. Re5 {[%emt 0:00:05]} Rb3 {[%emt 0:00:05]} 85. Rd5 {[%emt 0:00:16]} Ra3 {[%emt 0:00:06]} 86. Re5 {[%emt 0:00:09]} Rb3 {[%emt 0:00:06]} 1/2-1/2

[Event "94th Paris-ch  2019"]
[Site "Paris"]
[Date "2019.07.07"]
[Round "1.6"]
[White "Abergel, Thal"]
[Black "Le Goff, Ronan"]
[Result "1-0"]
[ECO "A14"]
[WhiteElo "2450"]
[BlackElo "2281"]
[Annotator "ChessBase"]
[PlyCount "79"]
[EventDate "2019.07.07"]
[EventType "swiss"]
[EventCountry "FRA"]
[SourceTitle "playchess.com"]
[Source "ChessBase"]
[SourceQuality "1"]
[TimeControl "5400+30"]

1. Nf3 {[%emt 0:00:00]} Nf6 {[%emt 0:00:00]} 2. c4 {[%emt 0:00:00]} e6 {[%emt 0:00:00]} 3. g3 {[%emt 0:00:00]} d5 {[%emt 0:00:00]} 4. Bg2 {[%emt 0:00:00]} Be7 {[%emt 0:00:00]} 5. O-O {[%emt 0:00:04]} O-O {[%emt 0:00:04]} 6. b3 {[%emt 0:00:09]} d4 {[%emt 0:00:07]} 7. Bb2 {[%emt 0:00:24]} c5 {[%emt 0:00:07]} 8. e3 {[%emt 0:00:14]} Nc6 {[%emt 0:00:07]} 9. exd4 {[%emt 0:00:10]} cxd4 {[%emt 0:00:07]} 10. Re1 {[%emt 0:00:40]} Re8 {[%emt 0:04:33]} 11. d3 {[%emt 0:01:30]} Bf8 {[%emt 0:02:44]} 12. Ba3 {[%emt 0:02:59]} e5 {[%emt 0:09:04]} 13. Bxf8 {[%emt 0:00:24]} Kxf8 {[%emt 0:00:17]} 14. Na3 {[%emt 0:03:42]} Bf5 {[%emt 0:10:04]} 15. Nc2 {[%emt 0:03:27]} a5 {[%emt 0:01:08]} 16. a3 {[%emt 0:00:53]} Qd6 {[%emt 0:01:15]} 17. Nh4 {[%emt 0:05:11]} Bg4 {[%emt 0:02:42]} 18. Qd2 {[%emt 0:00:48]} h6 {[%emt 0:02:28]} 19. h3 {[%emt 0:01:47]} Bd7 {[%emt 0:03:40]} 20. b4 {[%emt 0:01:28]} axb4 {[%emt 0:10:03]} 21. axb4 {[%emt 0:01:02]} Rxa1 {[%emt 0:00:27]} 22. Rxa1 {[%emt 0:00:06]} e4 {[%emt 0:05:02]} 23. b5 {[%emt 0:07:52]} Ne5 {[%emt 0:06:25]} 24. dxe4 {[%emt 0:01:37]} Nxc4 {[%emt 0:01:12]} 25. Qxd4 {[%emt 0:01:09]} Bxb5 {[%emt 0:06:21]} 26. f4 {[%emt 0:09:58]} Qc7 {[%emt 0:08:06]} 27. Rd1 {[%emt 0:02:44]} Ba4 {[%emt 0:01:26]} 28. Rc1 {[%emt 0:20:15]} Rd8 {[%emt 0:03:56]} 29. Qc3 {[%emt 0:00:17]} Qc5+ {[%emt 0:03:40]} 30. Kh2 {[%emt 0:00:36]} Bxc2 {[%emt 0:01:44]} 31. Qxc2 {[%emt 0:00:15]} b5 {[%emt 0:00:08]} 32. e5 {[%emt 0:01:08]} Nh5 {[%emt 0:05:44]} 33. Rd1 {[%emt 0:03:21]} Qb6 {[%emt 0:03:49]} 34. Rxd8+ {[%emt 0:03:42]} Qxd8 {[%emt 0:00:09]} 35. Qh7 {[%emt 0:00:30]} Ne3 {[%emt 0:02:20]} 36. Qe4 {[%emt 0:06:47]} Qd2 {[%emt 0:02:15]} 37. Qa8+ {[%emt 0:00:30]} Ke7 {[%emt 0:00:07]} 38. Qa7+ {[%emt 0:00:31]} Kd8 {[%emt 0:01:56]} 39. Qb6+ {[%emt 0:02:31]} Ke7 {[%emt 0:00:37]} 40. Qxe3 {[%emt 0:00:20]} 1-0

[Event "94th Paris-ch  2019"]
[Site "Paris"]
[Date "2019.07.07"]
[Round "1.7"]
[White "Rahul Srivatshav P"]
[Black "Guilleux, Fabien"]
[Result "0-1"]
[ECO "B30"]
[WhiteElo "2414"]
[BlackElo "2442"]
[Annotator "NA"]
[PlyCount "116"]
[EventDate "2019.07.07"]
[EventType "swiss"]
[EventCountry "FRA"]
[SourceTitle "playchess.com"]
[Source "ChessBase"]
[SourceQuality "1"]
[TimeControl "5400+30"]

1. e4 {[%emt 0:00:00]} c5 {[%emt 0:00:00]} 2. Nf3 {[%emt 0:00:00]} Nc6 {[%emt 0:00:00]} 3. Bb5 {[%emt 0:00:00]} e6 {[%emt 0:00:06]} 4. Bxc6 {[%emt 0:00:29]} bxc6 {[%emt 0:00:09]} 5. O-O {[%emt 0:03:19]} Ne7 {[%emt 0:05:39]} 6. e5 {[%emt 0:04:37]} Ng6 {[%emt 0:01:14]} 7. d3 {[%emt 0:03:09]} Be7 {[%emt 0:03:07]} 8. Nbd2 {[%emt 0:10:59]} O-O {[%emt 0:05:12]} 9. Re1 {[%emt 0:01:38]} Rb8 {[%emt 0:22:24]} 10. Rb1 {[%emt 0:09:42]} f6 {[%emt 0:14:57]} 11. exf6 {[%emt 0:03:10]} gxf6 {[%emt 0:02:22]} 12. Nb3 {[%emt 0:06:05]} e5 {[%emt 0:04:23]} 13. Bh6 {[%emt 0:10:14]} Rf7 {[%emt 0:01:22]} 14. c3 {[%emt 0:02:33]} d6 {[%emt 0:01:07]} 15. Nbd2 {[%emt 0:07:03]} Be6 {[%emt 0:03:40]} 16. Qa4 {[%emt 0:05:06]} Qd7 {[%emt 0:00:22]} 17. Nf1 {[%emt 0:07:03]} Kh8 {[%emt 0:06:12]} 18. Ng3 {[%emt 0:05:06]} Bd5 {[%emt 0:05:20]} 19. Nd2 {[%emt 0:09:19]} f5 {[%emt 0:01:51]} 20. c4 {[%emt 0:01:44]} Be6 {[%emt 0:01:11]} 21. b4 {[%emt 0:03:34]} cxb4 22. Rxb4 {[%emt 0:00:01]} Rxb4 {[%emt 0:13:08]} 23. Qxb4 {[%emt 0:00:01]} Bf8 {[%emt 0:00:10]} 24. Bxf8 {[%emt 0:02:09]} Rxf8 {[%emt 0:00:06]} 25. d4 {[%emt 0:01:47]} c5 {[%emt 0:03:25]} 26. dxc5 {[%emt 0:00:38]} dxc5 {[%emt 0:00:01]} 27. Qc3 {[%emt 0:00:22]} Qd4 {[%emt 0:00:07]} 28. Qc2 {[%emt 0:01:29]} e4 {[%emt 0:01:33]} 29. Nb3 {[%emt 0:00:46]} Qe5 {[%emt 0:00:20]} 30. Ne2 {[%emt 0:01:54]} Rg8 {[%emt 0:01:45]} 31. Kh1 {[%emt 0:00:48]} Nh4 {[%emt 0:00:42]} 32. Ng3 {[%emt 0:00:32]} Rd8 {[%emt 0:02:12]} 33. Qe2 {[%emt 0:00:11]} Ng6 {[%emt 0:00:26]} 34. Nh5 {[%emt 0:00:35]} f4 {[%emt 0:00:32]} 35. Rd1 {[%emt 0:00:40]} Rxd1+ {[%emt 0:01:23]} 36. Qxd1 {[%emt 0:00:01]} e3 {[%emt 0:00:38]} 37. Qd8+ {[%emt 0:00:37]} Bg8 {[%emt 0:00:01]} 38. fxe3 {[%emt 0:00:35]} fxe3 {[%emt 0:00:11]} 39. Nc1 {[%emt 0:00:44]} Qa1 {[%emt 0:00:57]} 40. Qd1 {[%emt 0:00:35]} Bxc4 {[%emt 0:00:59]} 41. Qe1 {[%emt 0:00:42]} Qd4 {[%emt 0:00:14]} 42. h3 {[%emt 0:00:30]} Qd2 {[%emt 0:00:32]} 43. Qg1 {[%emt 0:00:05]} e2 {[%emt 0:00:44]} 44. Nxe2 Qxe2 {[%emt 0:00:02]} 45. Qxc5 {[%emt 0:00:37]} Qe1+ {[%emt 0:00:07]} 46. Kh2 {[%emt 0:00:01]} Qe5+ {[%emt 0:00:09]} 47. Qxe5+ {[%emt 0:00:12]} Nxe5 {[%emt 0:00:01]} 48. a3 {[%emt 0:00:25]} Bb3 {[%emt 0:00:22]} 49. Kg3 {[%emt 0:00:29]} Nc4 {[%emt 0:00:11]} 50. Kf4 {[%emt 0:00:02]} Nxa3 {[%emt 0:00:10]} 51. Ke4 {[%emt 0:00:16]} Nc2 {[%emt 0:01:02]} 52. Kd3 {[%emt 0:00:24]} a5 {[%emt 0:00:12]} 53. Kc3 {[%emt 0:00:33]} a4 {[%emt 0:00:06]} 54. g4 {[%emt 0:00:58]} Ne3 {[%emt 0:00:31]} 55. g5 {[%emt 0:01:52]} Bf7 {[%emt 0:00:39]} 56. Ng3 {[%emt 0:00:28]} a3 {[%emt 0:00:09]} 57. Ne4 {[%emt 0:01:03]} a2 {[%emt 0:00:21]} 58. Kb2 {[%emt 0:00:01]} Nc2 {[%emt 0:00:16]} 0-1